Cogmind - Beta 14 @@@ ROGUE MODE // 2024.12.22 @ 19:18:05 Player: Darsidian Result: Destroyed by G-47 Trooper with Particle Gun Performance ------------- Evolutions (2) 1000 Regions Visited (6) 1200 Robots Destroyed (51) 255 Value Destroyed (1838) 1838 Prototype IDs (4) 80 Alien Tech Used (0) 0 Bonus (886) 886 TOTAL SCORE: 5259 Bonus ------- High Alert Combat Kills 13 Follower Combat Kills 173 Entered Garrisons 200 Used RIF Installer 500 Cogmind --------- Core Integrity 0/550 Matter 220/300 Energy 287/290 System Corruption 1% Temperature Cool (9) Movement Rolling (105) Ox1 Location -8/Materials Parts ------- > --- POWER (1) -------- Improved Deuterium Engine > --- PROPULSION (3) --- Armored Wheel Armored Wheel Armored Wheel > --- UTILITY (5) ------ High-capacity Storage Unit Advanced Visual Processing Unit Targeting Computer Core Analyzer Trap Extractor (0/4) > --- WEAPON (2) ------- Remote Datajack Katana > --- INVENTORY (20) --- Light Nuclear Core Armored Wheel Armored Wheel Improved Cooling System Structural Scanner Improved Terrain Scanner Hardened Light Armor Plating Authchip [R/Combat] Authchip [R/Combat] Relay Coupler [NC] (32) Relay Coupler [NC] (27) Relay Coupler [Sentry] (19) Relay Coupler [Behemoth] (10) Subdweller Laser Subdweller Laser Assault Rifle Rocket Launcher Plasma Cutter Peak State ------------ > --- POWER ------------ Light Deuterium Engine > --- PROPULSION ------- Improved Carbon-fiber Leg Improved Carbon-fiber Leg Armored Wheel > --- UTILITY ---------- High-capacity Storage Unit Advanced Visual Processing Unit Core Analyzer Armor Integrity Analyzer System Shield > --- WEAPON ----------- Gauss Rifle Gauss Rifle > --- INVENTORY -------- Improved Deuterium Engine Aluminum Leg Improved Carbon-fiber Leg Improved Cooling System High-capacity Matter Pod Structural Scanner Improved Terrain Scanner Relay Coupler [NC] Relay Coupler [NC] Relay Coupler [Behemoth] Trap Extractor Rocket Launcher Remote Datajack Plasma Cutter Katana [Rating: 39] Favorites ----------- Power Ion Engine Engine Ion Engine Propulsion Light Treads Treads Light Treads Leg Improved Carbon-fiber Leg Wheel Armored Wheel Utility Large Storage Unit Device Seismic Detector Storage Large Storage Unit Processor Core Analyzer Hackware System Shield Protection Light Armor Plating Weapon Assault Rifle Energy Gun Beamcaster Ballistic Gun Assault Rifle Ballistic Cannon Light Cannon Launcher Rocket Launcher Special Weapon Remote Datajack Slashing Weapon Katana Build | -11 -10 -10 -10 -8 -8 -8 ------- Run | Yrd Mat Min Sub Mat Gar Mat Slots Evolved 4 | . . . . 4 . . Power . | . . . . . . . Propulsion 1 | . . . . 1 . . Utility 3 | . . . . 3 . . Weapon . | . . . . . . . Parts Attached 94 | 7 8 1 7 20 46 5 Power 4 | 1 . . 1 . 2 . Engine 4 | 1 . . 1 . 2 . Core . | . . . . . . . Reactor . | . . . . . . . Propulsion 26 | 2 . . 2 7 15 . Treads 6 | 2 . . . 3 1 . Leg 5 | . . . . . 5 . Wheel 15 | . . . 2 4 9 . Hover . | . . . . . . . Flight . | . . . . . . . Utility 27 | 2 2 1 2 7 10 3 Device 11 | 1 1 . 1 6 1 1 Storage 3 | 1 1 . . . 1 . Processor 6 | . . 1 . 1 4 . Hackware 5 | . . . . . 4 1 Protection 2 | . . . 1 . . 1 Artifact . | . . . . . . . Weapon 37 | 2 6 . 2 6 19 2 Energy Gun 7 | 1 . . 1 . 5 . Energy Cannon . | . . . . . . . Ballistic Gun 15 | 1 4 . 1 3 6 . Ballistic Cannon 2 | . 1 . . . 1 . Launcher 3 | . 1 . . . 2 . Special Weapon 3 | . . . . 1 1 1 Impact Weapon . | . . . . . . . Slashing Weapon 7 | . . . . 2 4 1 Piercing Weapon . | . . . . . . . Special Melee Weapon . | . . . . . . . Unidentified Prototypes . | . . . . . . . Parts Lost 17 | . . . . . 17 . Power 2 | . . . . . 2 . Propulsion 5 | . . . . . 5 . Utility 6 | . . . . . 6 . Weapon 4 | . . . . . 4 . Highest Loss Streak 9 | . . . . . 9 . To Critical Strikes 1 | . . . . . 1 . Average Slot Usage (%) 97 | . 100 100 100 100 94 99 Engine 11 | . 14 14 14 9 8 9 Treads 15 | . 28 28 13 11 3 . Leg 4 | . . . . . 11 . Wheel 7 | . . . 14 15 11 27 Device 9 | . 14 4 5 27 3 . Storage 11 | . 14 14 14 9 9 9 Processor 11 | . . 9 5 9 22 27 Hackware 2 | . . . . . 6 6 Energy Gun 4 | . 3 . 6 9 4 2 Ballistic Gun 15 | . 23 28 21 5 8 . Slashing Weapon 1 | . . . . 2 3 7 Peak Build Rating 39 | 7 8 9 21 28 39 32 Average Rating 19 | 5 7 8 14 25 32 31 On Entrance 14 | . 7 8 9 21 28 28 Naked Turns . | . . . . . . . Heaviest Build 60 | 15 31 30 41 43 58 60 Greatest Support 60 | 40 40 40 40 60 60 36 Greatest Overweight (x) 4 | . . . 1 2 4 1 Average Overweight (x) . | . . . . . . 1 Largest Inventory Capacity 20 | 8 15 15 15 15 20 20 Average Capacity 15 | 7 14 15 15 15 17 20 Most Carried 20 | 2 15 15 15 15 20 20 Average Carried 12 | . 8 14 14 13 15 19 Final Capacity 20 | 8 15 15 15 15 20 20 Final Carried 19 | 1 15 15 15 15 19 18 Class Distribution -------------------- 53% | Scavenger-Mutant 46% | Mutant Dominant Class ---------------- Mutant | -10/Materials Mutant | -10/Mines Scavenger-Mutant | -10/Subcaves Scavenger-Mutant | -8/Materials Scavenger-Mutant | -8/Garrison Scavenger-Mutant | -8/Materials Resources | -11 -10 -10 -10 -8 -8 -8 ----------- Run | Yrd Mat Min Sub Mat Gar Mat Matter Collected 2285 | 327 615 79 128 248 888 . Remotely . | . . . . . . . Salvage Created 2467 | 186 584 . 55 451 1191 . Parts 120 | 13 36 . 4 24 43 . Haulers Intercepted 2 | . 2 . . . . . Recyclers Shooed 2 | . 2 . . . . . Parts Field Recycled . | . . . . . . . Retrieved Matter . | . . . . . . . Parts Self-Destructed 4 | . . . 4 . . . Prevented . | . . . . . . . Kills | -11 -10 -10 -10 -8 -8 -8 ------- Run | Yrd Mat Min Sub Mat Gar Mat Combat Hostiles Destroyed 31 | . 10 . 1 6 14 . Melee 1 | . . . . . 1 . Guns 26 | . 8 . 1 6 11 . Cannons 1 | . . . . . 1 . AOE 3 | . 2 . . . 1 . Classes Destroyed 15 | 3 6 . 1 . 5 . Worker 5 | 1 1 . . 3 . . Builder 1 | . 1 . . . . . Tunneler 5 | 5 . . . . . . Hauler 2 | . 2 . . . . . Recycler 4 | 1 2 . . 1 . . Operator 1 | . 1 . . . . . Watcher 2 | . 1 . . 1 . . Swarmer 6 | . 6 . . . . . Grunt 15 | . 4 . . 4 7 . Brawler 1 | . . . . . 1 . Duelist 1 | . . . . . 1 . Sentry 3 | . . . 1 2 . . Demolisher 1 | . . . . . 1 . Specialist 3 | . . . . . 3 . Hunter 1 | . . . . . 1 . Best Kill Streak 6 | 3 4 . 1 3 6 . Combat Bots Only 6 | . 3 . 1 2 6 . Max Kills in Single Turn 1 | 1 1 . 1 1 1 . Gunslinging . | . . . . . . . Exploded 1 | . 1 . . . 1 . Melee 1 | . . . . . 1 . Uniques/NPCs Destroyed . | . . . . . . . Combat | -11 -10 -10 -10 -8 -8 -8 -------- Run | Yrd Mat Min Sub Mat Gar Mat Hostile Shots Fired 233 | . 47 8 6 37 132 3 Missed 58 | . 11 4 2 11 29 1 Damage Taken 2947 | . 392 32 52 409 2026 36 Core 648 | . 59 8 31 61 473 16 Absorbed by Shields 26 | . . . . . 26 . Core Remaining (%) 80 | 100 . . 60 . . . Volleys Fired 225 | 19 70 3 9 29 89 6 Largest 2 | 2 2 2 2 2 2 1 Hottest 135 | 70 70 40 105 105 135 5 Shots Fired 424 | 38 135 6 18 57 164 6 Gun 398 | 38 130 6 18 56 150 . Cannon 9 | . 3 . . . 6 . Launcher 4 | . 2 . . . 2 . Special 13 | . . . . 1 6 6 Kinetic 293 | 19 114 6 17 28 109 . Thermal 115 | 19 19 . 1 29 47 . Explosive 4 | . 2 . . . 2 . Electromagnetic . | . . . . . . . Robot Hit Streak 29 | 11 7 3 7 5 29 3 Robot Miss Streak 8 | 2 5 1 3 8 4 3 Penetration Max . | . . . . . . . Secondary Targets 4 | . 2 . . . 2 . Max Gunslinging Chain 1 | . 1 . . . 1 . Shots Hit Robots 292 | 23 74 5 12 32 142 4 Core Hits 117 | 8 28 1 4 18 58 . Critical Kills 2 | . 1 . . . 1 . Critical Parts Destroyed 2 | . . . . 1 1 . Critical Strikes 8 | 1 1 . . 3 3 . Burn 4 | 1 . . . 2 1 . Destroy 4 | . 1 . . 1 2 . Melee Attacks 50 | . . . . 5 42 3 Impact . | . . . . . . . Slashing 50 | . . . . 5 42 3 Piercing . | . . . . . . . Sneak Attacks 2 | . . . . 2 . . Combat Hostiles . | . . . . . . . Follow-up Attacks . | . . . . . . . Damage Inflicted 5379 | 311 1072 62 160 841 2896 37 Guns 3854 | 311 924 62 160 678 1719 . Cannons 54 | . . . . . 54 . Explosions 405 | . 148 . . . 257 . Melee 1066 | . . . . 163 866 37 Ramming . | . . . . . . . Kinetic 2553 | 173 811 62 139 315 1053 . Thermal 1355 | 138 113 . 21 363 720 . Explosive 405 | . 148 . . . 257 . Electromagnetic . | . . . . . . . Impact . | . . . . . . . Slashing 1066 | . . . . 163 866 37 Piercing . | . . . . . . . Highest Corruption 2 | . 2 2 2 . . 1 Average Corruption 1 | . 2 2 2 . . 1 Corruption Purged . | . . . . . . . Corruption Blocked . | . . . . . . . Effects 25 | . 11 12 2 . . . Message Errors 13 | . 8 4 1 . . . Matter Fused 3 | . 1 2 . . . . Heat Flow Errors 1 | . 1 . . . . . Energy Discharges 2 | . . 2 . . . . Data Loss (minor) 2 | . . 1 1 . . . Data Loss (major) 2 | . . 2 . . . . Alerts 1 | . . 1 . . . . Weapon Failures 1 | . 1 . . . . . Overload Shots . | . . . . . . . Overflow Damage 29 | . . . . 27 . 2 Projectiles . | . . . . . . . Explosions . | . . . . . . . Melee 29 | . . . . 27 . 2 Knockbacks 5 | . . . . . 5 . Impact . | . . . . . . . Kinetic 5 | . . . . . 5 . Secondary . | . . . . . . . Self-Inflicted Damage . | . . . . . . . Shots . | . . . . . . . Rammed . | . . . . . . . Targets Rammed . | . . . . . . . Kicked . | . . . . . . . Crushed . | . . . . . . . Highest Temperature 450 | 72 239 . . 450 351 . Average Temperature 85 | 23 59 . . 126 90 . Received Heat Transfer 1008 | . 165 . 24 252 549 18 Effects 1 | . . . . 1 . . Shutdowns 1 | . . . . 1 . . Siege Activations . | . . . . . . . Robots Corrupted . | . . . . . . . Combat Hostiles . | . . . . . . . Parts Fried . | . . . . . . . Impact Corruptions . | . . . . . . . Robots Melted . | . . . . . . . Combat Hostiles . | . . . . . . . Parts Melted 3 | . 1 . . . 2 . Heat Transferred 2641 | 481 333 . 37 777 1013 . Parts Sabotaged . | . . . . . . . Parts Stolen . | . . . . . . . Parts Stripped . | . . . . . . . Power Chain Reactions . | . . . . . . . Alert | -11 -10 -10 -10 -8 -8 -8 ------- Run | Yrd Mat Min Sub Mat Gar Mat Peak Influence 606 | 35 219 75 . 220 606 288 Initial 271 | . 22 60 . 40 77 271 Average 196 | 14 99 45 . 133 368 206 Maximum Alert Level 2 | . 1 . . 1 2 1 Low Security (%) 64 | 100 88 100 . 84 23 53 Level 1 15 | . 11 . . 15 24 46 Level 2 19 | . . . . . 52 . Level 3 . | . . . . . . . Level 4 . | . . . . . . . Level 5 . | . . . . . . . High Security . | . . . . . . . Max Security . | . . . . . . . Squads Dispatched 4 | . 1 . . 2 . 1 Investigation . | . . . . . . . Extermination . | . . . . . . . Reinforcement 3 | . 1 . . 1 . 1 Assault . | . . . . . . . Garrison 1 | . . . . 1 . . Intercept . | . . . . . . . Searches Triggered . | . . . . . . . Construction Impeded . | . . . . . . . Haulers Reinforced . | . . . . . . . Active Scanning Responses . | . . . . . . . Cargo Convoy Interrupts . | . . . . . . . Stealth | -11 -10 -10 -10 -8 -8 -8 --------- Run | Yrd Mat Min Sub Mat Gar Mat Distress Signals 5 | . 3 . . 1 . 1 Communications Jammed . | . . . . . . . Distress Signals . | . . . . . . . Times Spotted 76 | . 19 5 10 17 21 4 Peak Tracking Total 6 | . 6 5 6 6 5 4 Tactical Retreats 2 | . 1 . . . 1 . Traps | -11 -10 -10 -10 -8 -8 -8 ------- Run | Yrd Mat Min Sub Mat Gar Mat Traps Triggered 5 | . 1 . . . 4 . Indirectly . | . . . . . . . Trap Hack Attempts . | . . . . . . . Triggered . | . . . . . . . Disarmed . | . . . . . . . Reprogrammed . | . . . . . . . Reused 1 | . . . . . . 1 Traps Extracted . | . . . . . . . Installed 2 | . . . . . . 2 Triggered 1 | . . . . . . 1 Most Traps Carried 3 | . . 3 3 3 3 3 Machines | -11 -10 -10 -10 -8 -8 -8 ---------- Run | Yrd Mat Min Sub Mat Gar Mat Machines Disabled 9 | . 4 . . 3 2 . Max in Single Turn 3 | . 3 . . 1 1 . Garrison Relay 2 | . . . . . 2 . Machines Repaired . | . . . . . . . Machines Dismantled . | . . . . . . . Machines Sabotaged . | . . . . . . . Overloaded Fab Kills . | . . . . . . . Hacking | -11 -10 -10 -10 -8 -8 -8 --------- Run | Yrd Mat Min Sub Mat Gar Mat Machines Accessed 10 | . 5 . . 4 1 . Terminals 8 | . 4 . . 3 1 . Fabricators . | . . . . . . . Repair Stations . | . . . . . . . Recycling Units 1 | . 1 . . . . . Scanalyzers . | . . . . . . . Garrison Access 1 | . . . . 1 . . Total Hacks 27 | . 18 . . 8 1 . Successful 17 | . 12 . . 5 . . Failed 10 | . 6 . . 3 1 . Catastrophic 2 | . 1 . . . 1 . Database Lockouts . | . . . . . . . Manual 20 | . 13 . . 6 1 . Terminals 23 | . 15 . . 7 1 . Fabricators . | . . . . . . . Repair Stations . | . . . . . . . Recycling Units 3 | . 3 . . . . . Scanalyzers . | . . . . . . . Garrison Access 1 | . . . . 1 . . Terminal Hacks 6 | . 5 . . 1 . . Prototype ID Bank 3 | . 3 . . . . . Transport Status 1 | . 1 . . . . . Hauler Manifests 2 | . 1 . . 1 . . Fabricator Hacks . | . . . . . . . Repair Station Hacks . | . . . . . . . Recycling Unit Hacks 2 | . 2 . . . . . Report Inventory 1 | . 1 . . . . . Retrieve Matter 1 | . 1 . . . . . Scanalyzer . | . . . . . . . Garrison Access Hacks 1 | . . . . 1 . . Unlock Access 1 | . . . . 1 . . Unauthorized Hacks 8 | . 5 . . 3 . . Terminals 8 | . 5 . . 3 . . Botnet 6 | . 4 . . 2 . . Operators 2 | . 1 . . 1 . . Fabricators . | . . . . . . . Repair Stations . | . . . . . . . Recycling Units . | . . . . . . . Scanalyzers . | . . . . . . . Garrison Access . | . . . . . . . Data Cores Recovered . | . . . . . . . Used . | . . . . . . . Hacking Detections 8 | . 5 . . 2 1 . Full Trace Events . | . . . . . . . Feedback Events . | . . . . . . . Feedback Blocked . | . . . . . . . Robot Schematics Acquired . | . . . . . . . Robots Built . | . . . . . . . Authchips . | . . . . . . . Time . | . . . . . . . Total Robot Build Rating . | . . . . . . . Part Schematics Acquired . | . . . . . . . Parts Built . | . . . . . . . Authchips . | . . . . . . . Time . | . . . . . . . Total Part Build Rating . | . . . . . . . Parts Repaired . | . . . . . . . Time . | . . . . . . . Parts Recycled . | . . . . . . . Recycled Matter . | . . . . . . . Retrieved Matter . | . . . . . . . Retrieved Components . | . . . . . . . Parts Scanalyzed . | . . . . . . . Part Schematics Acquired . | . . . . . . . Parts Damaged . | . . . . . . . Bothacking | -11 -10 -10 -10 -8 -8 -8 ------------ Run | Yrd Mat Min Sub Mat Gar Mat Used RIF Installer 1 | . . . . . 1 . Robots Hacked 3 | . . . . . 2 1 Non-combat 2 | . . . . . 1 1 Combat 1 | . . . . . 1 . Robot Hacks Applied 4 | . . . . . 2 2 purge_threat 1 | . . . . . . 1 formatsys_low 1 | . . . . . . 1 formatsys_high 2 | . . . . . 2 . Relay Couplers Released 8 | . . . . . 8 . Machine Destruction 8 | . . . . . 8 . Attached 3 | . . . . . 2 1 Fabnet Peak Effective % . | . . . . . . . Robots Rewired . | . . . . . . . Allies Hacked . | . . . . . . . Hacks Repelled . | . . . . . . . Allies | -11 -10 -10 -10 -8 -8 -8 -------- Run | Yrd Mat Min Sub Mat Gar Mat Total Allies 6 | . . 3 . . 2 1 Largest Group 3 | . . 3 1 1 1 1 Highest-Rated Group 40 | . . 40 16 16 27 10 Highest-Rated Ally 27 | . . 16 16 16 27 10 Total Orders . | . . . . . . . Ally Attacks 46 | . . 19 15 7 5 . Total Damage 532 | . . 197 203 101 31 . Kills 10 | . . 5 3 . 2 . Allies Corrupted . | . . . . . . . Allies Melted . | . . . . . . . Intel | -11 -10 -10 -10 -8 -8 -8 ------- Run | Yrd Mat Min Sub Mat Gar Mat Robot Analysis Total . | . . . . . . . Derelict Logs Recovered 1 | . . 1 . . . . Drone Launches . | . . . . . . . Drone Recoveries . | . . . . . . . Exploration | -11 -10 -10 -10 -8 -8 -8 ------------- Run | Yrd Mat Min Sub Mat Gar Mat Turns Passed 4837 | 222 1154 720 329 587 1716 109 Spaces Moved 2791 | 100 561 437 218 349 1049 77 Core 5 | 5 . . . . . . Treads 1349 | 95 561 437 76 88 92 . Legs 405 | . . . . . 405 . Wheels 1032 | . . . 142 261 552 77 Hover . | . . . . . . . Flight . | . . . . . . . Fastest Speed 50 | 50 160 160 110 96 105 105 Average Speed 134 | 154 160 160 127 122 117 105 Slowest Speed 240 | 160 160 160 160 163 240 105 Overloaded Moves . | . . . . . . . Propulsion Burnouts . | . . . . . . . Robots Hopped . | . . . . . . . Cave-ins Triggered . | . . . . . . . Exploration Rate (%) 42 | 6 84 80 19 34 66 10 Regions Visited 6 Branch Regions 2 Pre-discovered Areas 1 | . . . 1 . . . Known Exits Taken 2 | . . 1 . 1 . . Unknown Exits Taken 3 | 1 1 . 1 . . . Scrap Searched 1 | . . 1 . . . . Spaces Dug 11 | . . . . 3 6 2 Terrain Destroyed 50 | . 22 . . 7 19 2 Melee 10 | . . . . 2 6 2 Projectile 6 | . . . . 5 1 . AOE 34 | . 22 . . . 12 . Terrain Rammed . | . . . . . . . Walls Destroyed . | . . . . . . . Machines Disabled . | . . . . . . . Actions | -11 -10 -10 -10 -8 -8 -8 --------- Run | Yrd Mat Min Sub Mat Gar Mat Total 3365 | 127 681 455 251 443 1311 97 Wait 56 | . 21 5 5 12 12 1 Move 2786 | 99 560 436 217 349 1048 77 Hop . | . . . . . . . Pick Up 70 | 2 16 5 4 12 29 2 Fast Attach 27 | 6 . . 5 5 11 . Attach 18 | 1 . . . 5 11 1 Detach 3 | . . . . 2 1 . Swap 49 | . 8 1 2 10 24 4 Drop 58 | . 6 5 9 14 23 1 Fire 225 | 19 70 3 9 29 89 6 Melee 50 | . . . . 5 42 3 Ram . | . . . . . . . Kick . | . . . . . . . Crush . | . . . . . . . Escape Stasis 21 | . . . . . 21 . Rewire . | . . . . . . . Trap 2 | . . . . . . 2 Miscellaneous . | . . . . . . . Route ------- -11/Scrapyard -10/Materials (discovered 3 exits: *Mat / [*Min x2]) -10/Mines (discovered 2 exits: *Mat / *Sub) -10/Subcaves -8/Materials (discovered 2 exits: [*Fac] / Gar) -8/Garrison (discovered 3 exits: [*Mat x3]) -8/Materials History --------- Turn | Location | Event 3 | -11/Scrapyard | Discovered new exit (range 16) 223 | -11/Scrapyard | Entered Materials 300 | -10/Materials | Build established: Mutant 677 | -10/Materials | Discovered new exit (range 7) 1071 | -10/Materials | Discovered new exit (range 15) 1200 | -10/Materials | Discovered new exit (range 11) 1377 | -10/Materials | Entered Mines 1401 | -10/Mines | Learned Materials garrison access intel 1501 | -10/Mines | Received a Rocket Launcher from a helpful Derelict 1552 | -10/Mines | Found a hidden stash of uninstalled traps 1608 | -10/Mines | Discovered new exit (range 12) 1630 | -10/Mines | Identified exit to Materials 1869 | -10/Mines | Assisted by bots powering up and referring to "LRC-V3" 2078 | -10/Mines | Discovered new exit (range 13) 2095 | -10/Mines | Identified exit to Subcaves 2097 | -10/Mines | Entered Subcaves 2097 | -10/Subcaves | Accompanied by 1 ally 2120 | -10/Subcaves | A swath of the cavern ceiling suddenly collapsed 2131 | -10/Subcaves | Learned location of Zion (-7) 2131 | -10/Subcaves | Met a Zionite searching for "candidates" 2211 | -10/Subcaves | Ambushed by swarm of Subdwellers 2258 | -10/Subcaves | Lost 3 allies 2396 | -10/Subcaves | Discovered new exit (range 14) 2426 | -10/Subcaves | Entered Materials 2426 | -8/Materials | Accompanied by 1 ally 2426 | -8/Materials | Evolved 4 slots: Propulsion x1, Utility x3 2427 | -8/Materials | Loaded intel: 1 garrison access location 2550 | -8/Materials | Build established: Scavenger-Mutant 2798 | -8/Materials | Discovered new exit (range 9) 2879 | -8/Materials | Garrison activated, responded to threat 3013 | -8/Materials | Identified exit to Garrison 3013 | -8/Materials | Entered Garrison 3033 | -8/Garrison | Triggered checkpoint 3046 | -8/Garrison | Garrison Relay disabled 3113 | -8/Garrison | Triggered checkpoint 3257 | -8/Garrison | Lost 9 parts (1p3n3u2w) 3287 | -8/Garrison | Discovered new exit (range 5) 3585 | -8/Garrison | Triggered checkpoint 3588 | -8/Garrison | Core integrity fell below 50% 3759 | -8/Garrison | Discovered new exit (range 13) 3771 | -8/Garrison | Installed Relay Interface Framework 3832 | -8/Garrison | Garrison Relay disabled 4170 | -8/Garrison | Triggered checkpoint 4247 | -8/Garrison | Triggered checkpoint 4276 | -8/Garrison | Core integrity fell below 20% 4321 | -8/Garrison | Lost 6 parts (1p2n1u2w) 4716 | -8/Garrison | Discovered new exit (range 12) 4729 | -8/Garrison | Entered Materials 4838 | -8/Materials | Destroyed by G-47 Trooper with Particle Gun Last Messages --------------- Purged multiple threat records, alert level lowered. 04781_ Jacked O-16 Technician... >>formatsys_low Rerouting network defenses. Erasing system data. Installing primary routines, ETC: 6. 04783_ Reactivated Technician 3a. 04784_ Technician 3a reveals location of EMP Trap. 04812_ Dropped Imp. Terrain Scanner. 04813_ Discarded Relay Coupler [NC]. 04822_ W-25 Informer sends out distress signal. 04823_ Destroyed Imp. Hover Unit. 04831_ Trap Extractor dropped Proton Bomb Trap. 04831_ Installed Proton Bomb Trap. 04832_ Trap Extractor dropped Proton Bomb Trap. 04833_ Installed Proton Bomb Trap. 04835_ G-47 Trooper triggered Proton Bomb Trap. 04835_ A bubble of electromagnetic force engulfs the area. 04835_ Processing Tank disabled. 04836_ Technician 3a destroyed. Map ----- +----------------------------------------------------+ | ????????????????????????????????????????????????? | | ????????????????????????????????????????????????? | | ????????????????????????????????????????????????? | | ????????????????????????????????????????????????? | | ????????????????????????????????????????????????? | | ?????????????????????????????????????? ????????? | | ?????????????????????????????????????? ???????? | | ?????????????????????????????###?????? ???????? | | ??????????????????????########T######? #???????? | | ??????????????????????# ## #???????? | | ??????????????????????# ^ ## #???????? | | ?????????????????????## ^ []## #???????? | | ?????????????????????"" ]!## #???????? | | ?????????????????????"Y """ ## #???????? | | ?????????????????????"" """ ## #???????? | | ??????????????????????# ^""" ## #???????? | | ????????????????????### ## #???????? | | ????????????????????#"" ^ ## #???????? | | ????????????????????#"Y """ """ ## #???????? | | ??????????###???????#"" """ """ ## #???????? | | ??????????# ####### """ """ ## #???????? | | ??????????# [ ####????? | | ??????????# #????? | | ??????????# #????? | | ?????????????? ####### u #????? | | ????????????????????#####@##### ###+########? | | ????????????????????# ## ##" #? | | ????????????????????# ## ###""" #? | | ????????????????????# """ &## #?#""" #? | | ????????????????????# """ " ^## ###""" #? | | ????????????????????# """ ! g## ##" #? | | ????????????????????# """ =%= ; ###""" #? | | ????????????????????# """ / ## #?#""" #? | | ????????????????????# ! ## #?#""" #? | | ????????????????????############ #?# #? | | ??????????????????????????????? #?##########? | | ???????????????????????????????######???????????? | | ????????????????????????????????????????????????? | | ????????????????????????????????????????????????? | | ????????????????????????????????????????????????? | | ????????????????????????????????????????????????? | | ????????????????????????????????????????????????? | | ????????????????????????????????????????????????? | | ????????????????????????????????????????????????? | | ????????????????????????????????????????????????? | | ????????????????????????????????????????????????? | | ????????????????????????????????????????????????? | | ????????????????????????????????????????????????? | | ????????????????????????????????????????????????? | | ????????????????????????????????????????????????? | +----------------------------------------------------+ Best States ------------- Heat Dissipation 58 Energy Generation 18 Energy Capacity 290 Matter Stores 300 Matter Capacity 300 Sight Range 21 Terrain Scan Density 10 Armor Coverage 150 Evasion (%) 55 Targeting Accuracy 5 Core Analysis 6 Armor Integrity Analysis 30 Recoil Reduction 3 Offensive Hacking 10 Defensive Hacking 10 Relay Coupler Types 1 Relay Coupler Value 36 Authchip Count 2 Trap Extractor Capacity 4 Item Schematics ----------------- None Robot Schematics ------------------ None Fabricated ------------ Nothing Alien Tech Used ----------------- None Achievements -------------- None Challenges ------------ None Game ------ Seed ZioniteAssembledPower Manual? 0 Play Time 01:03:26 Cumulative 221.2 hours Start 2024.12.22 @ 17:04:31 End 2024.12.22 @ 19:18:05 Sessions 1 Manual Loads 0 Difficulty Rogue Special Mode None Game No. 67 Rogue 67 Adventurer 0 Explorer 0 Win Type - Total 0 Types 0/0/0/0/0/0/0/0/0 Lore% 25 Gallery% 54 Achievement% 45 Wizard Run 0 Options --------- Layout 0 ASCII 0 Keyboard 0 Movement Mouse Keybinds 0 Fullscreen 1 Font 36/Smallcaps Map View 76x50 Zoom Use 0% Tactical HUD 1 Map Filters NONE Filters NONE Steam X RUN: 20301954-64bb-4670-80db-8a5e18918825